[Event "Kragero Resort B 2020"]
[Site "Kragero"]
[Date "2020.02.22"]
[Round "8.3"]
[White "Seo, Jung Hyun"]
[Black "Rynning, Rune Kleiven"]
[Result "1-0"]
[ECO "B90"]
[WhiteElo "1816"]
[BlackElo "1625"]
[Annotator "NA"]
[PlyCount "51"]
[EventDate "2020.02.19"]
[EventType "swiss"]
[EventCountry "NOR"]
[SourceTitle "playchess.com"]
[Source "ChessBase"]
[SourceQuality "1"]
[TimeControl "5400+30"]

1. e4 {[%emt 0:00:00]} c5 {[%emt 0:00:00]} 2. Nf3 {[%emt 0:00:00]} d6 {[%emt 0:00:00]} 3. d4 {[%emt 0:00:00]} cxd4 {[%emt 0:00:00]} 4. Nxd4 {[%emt 0:00:00]} Nf6 {[%emt 0:00:01]} 5. Nc3 {[%emt 0:00:00]} a6 {[%emt 0:00:08]} 6. f3 {[%emt 0:00:00]} Qb6 {[%emt 0:00:06]} 7. Nb3 {[%emt 0:00:07]} Nc6 {[%emt 0:02:18]} 8. Qe2 {[%emt 0:00:44]} Qc7 {[%emt 0:00:07]} 9. Be3 {[%emt 0:00:47]} b5 {[%emt 0:00:21]} 10. Qd2 {[%emt 0:06:58]} Ne5 {[%emt 0:06:58]} 11. O-O-O {[%emt 0:07:28]} Nc4 {[%emt 0:09:42]} 12. Bxc4 {[%emt 0:00:21]} Qxc4 {[%emt 0:01:02]} 13. e5 {[%emt 0:11:14]} b4 {[%emt 0:08:58]} 14. Na4 {[%emt 0:09:11]} Nd7 {[%emt 0:00:26]} 15. exd6 {[%emt 0:00:10]} exd6 {[%emt 0:00:55]} 16. Rhe1 {[%emt 0:00:29]} f6 {[%emt 0:03:34]} 17. Bc5+ {[%emt 0:06:54]} Kf7 {[%emt 0:00:02]} 18. Bxd6 {[%emt 0:07:14]} Bxd6 {[%emt 0:00:31]} 19. Qxd6 {[%emt 0:00:10]} Ne5 {[%emt 0:01:50]} 20. Rd4 {[%emt 0:06:59]} Qc6 {[%emt 0:03:01]} 21. Qxc6 {[%emt 0:03:06]} Nxc6 {[%emt 0:00:03]} 22. Rc4 {[%emt 0:00:06]} Ne5 {[%emt 0:02:31]} 23. Rxb4 {[%emt 0:00:12]} Bd7 {[%emt 0:04:24]} 24. Nac5 {[%emt 0:00:58]} Rac8 {[%emt 0:00:31]} 25. Rb7 {[%emt 0:00:54]} Rhd8 {[%emt 0:00:54]} 26. f4 {[%emt 0:00:40]} 1-0

[Event "Kragero Resort B 2020"]
[Site "Kragero"]
[Date "2020.02.22"]
[Round "8.4"]
[White "Strand, Amund Pihl"]
[Black "Hausken, Andreas Skrede"]
[Result "1/2-1/2"]
[ECO "A46"]
[WhiteElo "1806"]
[BlackElo "1856"]
[Annotator "NA"]
[PlyCount "136"]
[EventDate "2020.02.19"]
[EventType "swiss"]
[EventCountry "NOR"]
[SourceTitle "playchess.com"]
[Source "ChessBase"]
[SourceQuality "1"]
[TimeControl "5400+30"]

1. d4 {[%emt 0:00:00]} Nf6 {[%emt 0:00:00]} 2. Nf3 {[%emt 0:00:00]} e6 {[%emt 0:00:00]} 3. Bg5 {[%emt 0:00:00]} c5 {[%emt 0:06:46]} 4. d5 {[%emt 0:00:33]} exd5 {[%emt 0:00:57]} 5. e3 {[%emt 0:00:07]} Be7 {[%emt 0:04:54]} 6. Nc3 {[%emt 0:12:09]} h6 {[%emt 0:01:52]} 7. Bxf6 {[%emt 0:01:37]} Bxf6 {[%emt 0:00:06]} 8. Qxd5 {[%emt 0:00:19]} Bxc3+ {[%emt 0:01:41]} 9. bxc3 {[%emt 0:00:53]} Qe7 {[%emt 0:00:23]} 10. Ne5 {[%emt 0:08:45]} Nc6 {[%emt 0:02:22]} 11. Nc4 {[%emt 0:01:19]} O-O {[%emt 0:09:25]} 12. Bd3 {[%emt 0:01:50]} b6 {[%emt 0:08:27]} 13. Qf5 {[%emt 0:04:35]} g6 {[%emt 0:00:24]} 14. Qd5 {[%emt 0:02:06]} Rb8 {[%emt 0:08:45]} 15. Bxg6 {[%emt 0:05:58]} Qf6 {[%emt 0:14:41]} 16. Bd3 {[%emt 0:07:07]} Qxc3+ {[%emt 0:00:07]} 17. Ke2 {[%emt 0:00:09]} Re8 {[%emt 0:04:48]} 18. Rhd1 {[%emt 0:08:10]} Bb7 {[%emt 0:11:38]} 19. Qxd7 {[%emt 0:08:47]} Qg7 {[%emt 0:02:49]} 20. Qh3 {[%emt 0:01:34]} Rbd8 {[%emt 0:01:01]} 21. Kf1 {[%emt 0:04:11]} Nb4 {[%emt 0:01:15]} 22. Qg3 {[%emt 0:02:50]} Ba6 {[%emt 0:01:03]} 23. Qxg7+ {[%emt 0:02:19]} Kxg7 {[%emt 0:00:01]} 24. Nb2 {[%emt 0:00:52]} Bxd3+ {[%emt 0:01:45]} 25. cxd3 {[%emt 0:00:10]} Re7 {[%emt 0:01:14]} 26. a3 {[%emt 0:00:49]} Nc6 {[%emt 0:00:05]} 27. Rac1 {[%emt 0:01:17]} Na5 28. Nc4 {[%emt 0:01:47]} Nc6 {[%emt 0:01:13]} 29. Rd2 {[%emt 0:00:00]} Red7 {[%emt 0:00:12]} 30. Rcd1 {[%emt 0:00:04]} b5 {[%emt 0:01:00]} 31. Nb2 {[%emt 0:00:28]} c4 {[%emt 0:00:36]} 32. Rc2 {[%emt 0:00:34]} Ne5 {[%emt 0:01:03]} 33. d4 {[%emt 0:00:17]} Ng4 {[%emt 0:00:05]} 34. h3 {[%emt 0:00:17]} Nf6 {[%emt 0:00:13]} 35. Ra1 {[%emt 0:00:46]} Nd5 {[%emt 0:01:58]} 36. Nd1 {[%emt 0:00:38]} Rc7 {[%emt 0:00:31]} 37. Nc3 {[%emt 0:00:23]} Nxc3 {[%emt 0:00:10]} 38. Rxc3 {[%emt 0:00:02]} a5 {[%emt 0:00:08]} 39. Rac1 {[%emt 0:01:31]} Rdc8 {[%emt 0:00:56]} 40. R3c2 {[%emt 0:00:56]} Kf6 {[%emt 0:00:08]} 41. Ke2 {[%emt 0:00:10]} Ke6 {[%emt 0:00:19]} 42. e4 {[%emt 0:00:32]} f5 {[%emt 0:00:06]} 43. Ke3 {[%emt 0:01:28]} fxe4 {[%emt 0:00:30]} 44. Kxe4 {[%emt 0:00:03]} Kd6 {[%emt 0:00:42]} 45. Rb1 {[%emt 0:05:11]} Rb8 {[%emt 0:00:34]} 46. Rc3 {[%emt 0:05:10]} b4 {[%emt 0:00:04]} 47. axb4 {[%emt 0:00:12]} axb4 {[%emt 0:00:06]} 48. Rg3 {[%emt 0:00:17]} c3 {[%emt 0:00:18]} 49. Rg6+ {[%emt 0:00:49]} Kd7 {[%emt 0:00:05]} 50. Rg7+ {[%emt 0:00:28]} Kc6 {[%emt 0:00:09]} 51. Rxc7+ {[%emt 0:00:43]} Kxc7 {[%emt 0:00:03]} 52. Kd3 {[%emt 0:00:10]} Kd6 {[%emt 0:00:07]} 53. g4 {[%emt 0:00:22]} Rf8 {[%emt 0:00:43]} 54. Rxb4 {[%emt 0:03:34]} c2 {[%emt 0:00:11]} 55. Kxc2 {[%emt 0:00:29]} Rxf2+ {[%emt 0:00:04]} 56. Kd1 {[%emt 0:00:35]} Kd5 {[%emt 0:00:12]} 57. Rb6 {[%emt 0:00:17]} Kxd4 {[%emt 0:00:03]} 58. Rxh6 {[%emt 0:00:10]} Ke5 {[%emt 0:00:01]} 59. Rh8 {[%emt 0:00:54]} Rg2 {[%emt 0:00:11]} 60. Re8+ {[%emt 0:00:42]} Kf4 {[%emt 0:01:42]} 61. Re2 {[%emt 0:00:50]} Rg1+ {[%emt 0:00:30]} 62. Kd2 {[%emt 0:00:20]} Rh1 {[%emt 0:00:13]} 63. Re3 {[%emt 0:00:49]} Ra1 {[%emt 0:00:32]} 64. Rd3 {[%emt 0:00:53]} Rh1 {[%emt 0:00:53]} 65. Kc3 {[%emt 0:00:12]} Rh2 {[%emt 0:00:35]} 66. Kd4 {[%emt 0:00:17]} Re2 {[%emt 0:00:29]} 67. Kd5 {[%emt 0:00:19]} Kg5 {[%emt 0:00:21]} 68. Rd4 {[%emt 0:00:31]} Re3 {[%emt 0:00:03]} 1/2-1/2

[Event "Kragero Resort B 2020"]
[Site "Kragero"]
[Date "2020.02.22"]
[Round "8.5"]
[White "Aasen, Joakim"]
[Black "Skaslien, Ingrid"]
[Result "0-1"]
[ECO "D10"]
[WhiteElo "1745"]
[BlackElo "1847"]
[Annotator "NA"]
[PlyCount "145"]
[EventDate "2020.02.19"]
[EventType "swiss"]
[EventCountry "NOR"]
[SourceTitle "playchess.com"]
[Source "ChessBase"]
[SourceQuality "1"]
[TimeControl "5400+30"]

1. c4 {[%emt 0:00:00]} c6 {[%emt 0:00:00]} 2. d4 {[%emt 0:00:14]} d5 {[%emt 0:00:07]} 3. cxd5 {[%emt 0:00:11]} cxd5 {[%emt 0:00:08]} 4. Bf4 {[%emt 0:00:11]} Nc6 {[%emt 0:01:24]} 5. e3 {[%emt 0:00:33]} e6 {[%emt 0:01:05]} 6. Nc3 {[%emt 0:00:57]} Nf6 {[%emt 0:03:42]} 7. Bd3 {[%emt 0:01:31]} Bd6 {[%emt 0:04:38]} 8. Bxd6 {[%emt 0:01:06]} Qxd6 {[%emt 0:00:07]} 9. f4 {[%emt 0:00:14]} a6 {[%emt 0:03:49]} 10. Nf3 {[%emt 0:01:18]} O-O {[%emt 0:03:38]} 11. O-O {[%emt 0:01:23]} b5 {[%emt 0:04:00]} 12. Rc1 {[%emt 0:02:39]} Bb7 {[%emt 0:01:09]} 13. Qe1 {[%emt 0:01:51]} Ne7 {[%emt 0:06:04]} 14. h3 {[%emt 0:03:50]} Ne4 {[%emt 0:04:09]} 15. g4 {[%emt 0:06:54]} Rac8 {[%emt 0:05:33]} 16. Kh2 {[%emt 0:04:58]} b4 {[%emt 0:02:16]} 17. Ne2 {[%emt 0:02:16]} Rxc1 {[%emt 0:02:28]} 18. Nxc1 {[%emt 0:00:31]} a5 {[%emt 0:00:44]} 19. Nd2 {[%emt 0:03:24]} Ba6 {[%emt 0:03:46]} 20. Nxe4 {[%emt 0:03:31]} dxe4 {[%emt 0:00:13]} 21. Bxa6 {[%emt 0:00:07]} Qxa6 {[%emt 0:00:06]} 22. Nb3 {[%emt 0:00:06]} Nd5 {[%emt 0:08:29]} 23. Rf2 {[%emt 0:14:47]} Rc8 {[%emt 0:04:38]} 24. Qe2 {[%emt 0:04:39]} Qd3 {[%emt 0:06:10]} 25. Nc5 {[%emt 0:04:58]} Qxe3 {[%emt 0:02:44]} 26. Qxe3 {[%emt 0:00:10]} Nxe3 {[%emt 0:00:09]} 27. Re2 {[%emt 0:00:26]} Nc4 {[%emt 0:01:39]} 28. b3 {[%emt 0:01:47]} Nd6 {[%emt 0:00:59]} 29. Kg3 {[%emt 0:05:02]} Nb5 {[%emt 0:05:27]} 30. Nxe4 {[%emt 0:04:21]} Nxd4 {[%emt 0:00:40]} 31. Rd2 {[%emt 0:00:12]} Nb5 {[%emt 0:00:45]} 32. Kf3 {[%emt 0:01:03]} Kf8 {[%emt 0:01:05]} 33. Ke3 {[%emt 0:01:40]} Ke7 {[%emt 0:02:21]} 34. g5 {[%emt 0:03:20]} Nc3 {[%emt 0:02:32]} 35. h4 {[%emt 0:06:07]} Nd5+ {[%emt 0:01:07]} 36. Kf3 {[%emt 0:00:52]} Rc1 {[%emt 0:02:12]} 37. Rf2 {[%emt 0:02:36]} g6 {[%emt 0:06:24]} 38. Kg3 {[%emt 0:03:39]} f5 {[%emt 0:02:48]} 39. gxf6+ {[%emt 0:01:38]} Nxf6 {[%emt 0:00:05]} 40. Nxf6 {[%emt 0:00:21]} Kxf6 {[%emt 0:00:04]} 41. Re2 {[%emt 0:00:22]} Rc3+ {[%emt 0:00:15]} 42. Kg2 {[%emt 0:02:46]} h5 {[%emt 0:00:35]} 43. Re5 {[%emt 0:04:10]} Rc2+ {[%emt 0:00:18]} 44. Kg1 {[%emt 0:01:02]} Rxa2 {[%emt 0:00:10]} 45. Rb5 {[%emt 0:00:08]} Ra3 {[%emt 0:02:40]} 46. Kg2 {[%emt 0:00:39]} Rxb3 {[%emt 0:00:19]} 47. Rxa5 {[%emt 0:00:01]} Rd3 {[%emt 0:00:22]} 48. Rb5 {[%emt 0:00:39]} b3 {[%emt 0:00:08]} 49. Kf2 {[%emt 0:01:00]} Rh3 {[%emt 0:00:22]} 50. Kg2 {[%emt 0:00:27]} Rxh4 {[%emt 0:00:13]} 51. Kg3 {[%emt 0:00:03]} Rg4+ {[%emt 0:00:42]} 52. Kf3 {[%emt 0:00:03]} g5 {[%emt 0:00:56]} 53. fxg5+ {[%emt 0:00:22]} Rxg5 {[%emt 0:00:05]} 54. Rxb3 {[%emt 0:00:05]} h4 {[%emt 0:01:37]} 55. Rb8 {[%emt 0:00:11]} Kg7 {[%emt 0:02:04]} 56. Rb7+ {[%emt 0:00:35]} Kh6 {[%emt 0:01:12]} 57. Rb8 {[%emt 0:00:30]} Rg7 {[%emt 0:01:08]} 58. Rh8+ {[%emt 0:01:28]} Kg5 {[%emt 0:00:36]} 59. Re8 {[%emt 0:00:26]} Rg6 {[%emt 0:00:09]} 60. Rh8 {[%emt 0:00:18]} Rh6 {[%emt 0:00:53]} 61. Rg8+ {[%emt 0:00:15]} Kf5 {[%emt 0:00:18]} 62. Rf8+ {[%emt 0:00:37]} Ke5 {[%emt 0:00:09]} 63. Ra8 {[%emt 0:00:08]} h3 {[%emt 0:00:46]} 64. Ra5+ {[%emt 0:00:23]} Kd4 {[%emt 0:01:21]} 65. Ra4+ {[%emt 0:00:25]} Kc3 {[%emt 0:00:15]} 66. Ra1 {[%emt 0:00:32]} h2 {[%emt 0:00:59]} 67. Rh1 {[%emt 0:00:04]} Kd2 {[%emt 0:00:12]} 68. Kf2 {[%emt 0:01:39]} e5 {[%emt 0:00:12]} 69. Kf3 {[%emt 0:00:08]} Rh8 {[%emt 0:00:49]} 70. Ke4 {[%emt 0:01:48]} Ke2 {[%emt 0:00:08]} 71. Kxe5 {[%emt 0:00:04]} Kf2 {[%emt 0:00:07]} 72. Kf4 {[%emt 0:00:10]} Kg2 {[%emt 0:00:22]} 73. Ra1 {[%emt 0:00:08]} 0-1

[Event "Kragero Resort B 2020"]
[Site "Kragero"]
[Date "2020.02.22"]
[Round "8.6"]
[White "Nordquelle, Amelia"]
[Black "Solaas, Timian Martinius Man"]
[Result "0-1"]
[ECO "E97"]
[WhiteElo "1768"]
[BlackElo "1741"]
[Annotator "NA"]
[PlyCount "122"]
[EventDate "2020.02.19"]
[EventType "swiss"]
[EventCountry "NOR"]
[SourceTitle "playchess.com"]
[Source "ChessBase"]
[SourceQuality "1"]
[TimeControl "5400+30"]

1. d4 {[%emt 0:00:42]} Nf6 {[%emt 0:00:00]} 2. c4 {[%emt 0:00:16]} g6 {[%emt 0:00:00]} 3. Nc3 {[%emt 0:00:25]} Bg7 {[%emt 0:02:05]} 4. e4 {[%emt 0:00:33]} d6 {[%emt 0:00:13]} 5. Nf3 {[%emt 0:00:55]} O-O {[%emt 0:00:19]} 6. Be2 {[%emt 0:01:47]} e5 {[%emt 0:00:40]} 7. O-O {[%emt 0:01:46]} Nc6 {[%emt 0:00:10]} 8. d5 {[%emt 0:00:32]} Ne7 {[%emt 0:00:19]} 9. a3 {[%emt 0:01:22]} Ne8 {[%emt 0:02:27]} 10. b4 {[%emt 0:06:03]} f5 {[%emt 0:00:29]} 11. Bb2 {[%emt 0:04:48]} f4 {[%emt 0:03:24]} 12. Re1 {[%emt 0:05:49]} h6 {[%emt 0:03:54]} 13. c5 {[%emt 0:05:10]} g5 {[%emt 0:01:55]} 14. h3 {[%emt 0:00:32]} Ng6 {[%emt 0:08:31]} 15. Nh2 {[%emt 0:02:48]} Nf6 {[%emt 0:06:22]} 16. Ng4 {[%emt 0:03:10]} Rf7 {[%emt 0:08:15]} 17. Nxf6+ {[%emt 0:05:48]} Qxf6 {[%emt 0:01:05]} 18. cxd6 {[%emt 0:03:51]} cxd6 {[%emt 0:00:40]} 19. Rc1 {[%emt 0:07:23]} f3 {[%emt 0:06:38]} 20. Bxf3 {[%emt 0:02:16]} Nh4 {[%emt 0:07:05]} 21. Rc2 {[%emt 0:04:16]} Nxf3+ {[%emt 0:08:43]} 22. Qxf3 {[%emt 0:00:16]} Qxf3 {[%emt 0:00:27]} 23. gxf3 {[%emt 0:00:03]} Rxf3 {[%emt 0:01:48]} 24. Kg2 {[%emt 0:02:31]} Rf6 {[%emt 0:02:48]} 25. Nd1 {[%emt 0:05:41]} Rf7 {[%emt 0:04:59]} 26. Ne3 {[%emt 0:01:53]} Bd7 {[%emt 0:01:57]} 27. Nc4 {[%emt 0:03:32]} Rc8 {[%emt 0:03:35]} 28. Rec1 {[%emt 0:01:22]} Bf8 {[%emt 0:01:08]} 29. Na5 {[%emt 0:04:25]} Rxc2 {[%emt 0:02:09]} 30. Rxc2 {[%emt 0:00:01]} Bb5 {[%emt 0:01:49]} 31. f3 {[%emt 0:03:08]} Kh7 {[%emt 0:01:25]} 32. Bc1 {[%emt 0:01:29]} Kg6 {[%emt 0:00:59]} 33. Kg3 {[%emt 0:04:43]} a6 {[%emt 0:02:35]} 34. Be3 {[%emt 0:00:36]} Ba4 {[%emt 0:00:43]} 35. Rc1 {[%emt 0:00:46]} Bb5 {[%emt 0:00:52]} 36. Bb6 {[%emt 0:02:42]} Be2 {[%emt 0:00:36]} 37. Rc3 {[%emt 0:00:17]} h5 {[%emt 0:01:30]} 38. Kf2 {[%emt 0:02:15]} Bd1 {[%emt 0:00:28]} 39. Kg3 {[%emt 0:01:47]} Bh6 {[%emt 0:01:21]} 40. Nc4 {[%emt 0:02:35]} Bf8 {[%emt 0:01:38]} 41. Nb2 {[%emt 0:02:39]} Be2 {[%emt 0:00:52]} 42. Kf2 {[%emt 0:00:09]} Bb5 {[%emt 0:00:20]} 43. Ke3 {[%emt 0:00:13]} g4 {[%emt 0:00:36]} 44. hxg4 {[%emt 0:00:45]} Bh6+ {[%emt 0:01:25]} 45. Kf2 {[%emt 0:00:11]} hxg4 {[%emt 0:00:10]} 46. a4 {[%emt 0:01:40]} Bd2 {[%emt 0:01:47]} 47. Rb3 {[%emt 0:01:05]} Bd7 {[%emt 0:01:00]} 48. Ke2 {[%emt 0:00:33]} gxf3+ {[%emt 0:00:40]} 49. Kxd2 {[%emt 0:01:41]} f2 {[%emt 0:00:11]} 50. Bxf2 {[%emt 0:00:34]} Rxf2+ {[%emt 0:00:05]} 51. Ke3 {[%emt 0:00:08]} Rh2 {[%emt 0:01:17]} 52. Nd3 {[%emt 0:00:35]} Bxa4 {[%emt 0:01:40]} 53. Rb1 {[%emt 0:00:18]} Rh3+ {[%emt 0:01:00]} 54. Kd2 {[%emt 0:00:45]} Bb5 {[%emt 0:01:17]} 55. Nf2 {[%emt 0:00:50]} Rf3 {[%emt 0:01:53]} 56. Ng4 {[%emt 0:01:23]} Rd3+ {[%emt 0:00:17]} 57. Kc2 {[%emt 0:00:22]} Rg3 {[%emt 0:00:22]} 58. Nxe5+ {[%emt 0:00:57]} dxe5 {[%emt 0:00:13]} 59. Rd1 {[%emt 0:00:54]} Ba4+ {[%emt 0:00:15]} 60. Kd2 {[%emt 0:00:02]} Bxd1 {[%emt 0:00:23]} 61. d6 {[%emt 0:00:08]} Ba4 {[%emt 0:00:19]} 0-1

[Event "Kragero Resort B 2020"]
[Site "Kragero"]
[Date "2020.02.22"]
[Round "8.7"]
[White "Sejersted, Adrian"]
[Black "Opseth, Oliver"]
[Result "1/2-1/2"]
[ECO "D00"]
[WhiteElo "1788"]
[BlackElo "1894"]
[Annotator "NA"]
[PlyCount "118"]
[EventDate "2020.02.19"]
[EventType "swiss"]
[EventCountry "NOR"]
[SourceTitle "playchess.com"]
[Source "ChessBase"]
[SourceQuality "1"]
[TimeControl "5400+30"]

1. d4 {[%emt 0:00:00]} Nf6 {[%emt 0:00:00]} 2. Nc3 {[%emt 0:00:09]} d5 {[%emt 0:00:06]} 3. Bf4 {[%emt 0:00:06]} c6 {[%emt 0:01:15]} 4. e3 {[%emt 0:00:20]} g6 {[%emt 0:03:11]} 5. Nf3 {[%emt 0:00:44]} Bg7 {[%emt 0:00:25]} 6. Bd3 {[%emt 0:00:32]} Nbd7 {[%emt 0:00:55]} 7. Ne5 {[%emt 0:01:02]} Nh5 {[%emt 0:03:20]} 8. Qf3 {[%emt 0:02:25]} Nxf4 {[%emt 0:03:50]} 9. exf4 {[%emt 0:01:25]} O-O {[%emt 0:07:48]} 10. g4 {[%emt 0:01:43]} Nxe5 {[%emt 0:02:48]} 11. dxe5 {[%emt 0:01:52]} Qa5 {[%emt 0:03:33]} 12. O-O {[%emt 0:10:17]} f5 {[%emt 0:08:46]} 13. g5 {[%emt 0:01:03]} Be6 {[%emt 0:00:40]} 14. h4 {[%emt 0:01:30]} d4 {[%emt 0:02:29]} 15. Ne2 {[%emt 0:02:14]} Bd5 {[%emt 0:00:08]} 16. Qh3 {[%emt 0:02:15]} c5 {[%emt 0:00:59]} 17. b3 {[%emt 0:00:15]} a6 {[%emt 0:12:45]} 18. a4 {[%emt 0:04:02]} Qb4 {[%emt 0:02:04]} 19. a5 {[%emt 0:02:17]} b5 {[%emt 0:02:54]} 20. axb6 {[%emt 0:00:43]} Qxb6 {[%emt 0:00:19]} 21. h5 {[%emt 0:02:47]} h6 {[%emt 0:09:41]} 22. Qh4 {[%emt 0:05:56]} hxg5 {[%emt 0:05:43]} 23. Qxg5 {[%emt 0:01:25]} gxh5 {[%emt 0:04:34]} 24. Qxh5 {[%emt 0:02:46]} Qh6 {[%emt 0:04:56]} 25. Qxh6 {[%emt 0:00:18]} Bxh6 {[%emt 0:00:01]} 26. Rxa6 {[%emt 0:01:43]} Rxa6 {[%emt 0:00:03]} 27. Bxa6 {[%emt 0:00:12]} Bf3 {[%emt 0:01:00]} 28. Ra1 {[%emt 0:06:46]} Kg7 {[%emt 0:01:06]} 29. Bd3 {[%emt 0:02:19]} Rh8 {[%emt 0:02:10]} 30. Ra7 {[%emt 0:03:34]} Bxf4 {[%emt 0:02:16]} 31. Ng3 {[%emt 0:00:47]} Bxe5 {[%emt 0:01:09]} 32. Rxe7+ {[%emt 0:00:59]} Kf6 {[%emt 0:00:32]} 33. Ra7 {[%emt 0:03:41]} Bb8 {[%emt 0:08:37]} 34. Ra5 {[%emt 0:03:50]} f4 {[%emt 0:01:55]} 35. Rxc5 {[%emt 0:03:56]} Be5 {[%emt 0:03:57]} 36. Be4 {[%emt 0:00:38]} fxg3 {[%emt 0:00:30]} 37. Bxf3 {[%emt 0:00:17]} gxf2+ {[%emt 0:00:06]} 38. Kxf2 {[%emt 0:00:35]} Rh2+ {[%emt 0:00:09]} 39. Bg2 {[%emt 0:01:29]} Ke6 {[%emt 0:01:27]} 40. Rc4 {[%emt 0:00:44]} Rh8 {[%emt 0:00:18]} 41. Bf1 {[%emt 0:00:58]} Rf8+ {[%emt 0:00:19]} 42. Kg1 {[%emt 0:01:29]} Bf4 {[%emt 0:00:48]} 43. Bd3 {[%emt 0:00:26]} Be3+ {[%emt 0:00:10]} 44. Kg2 {[%emt 0:00:32]} Ke5 {[%emt 0:00:41]} 45. Rc6 {[%emt 0:01:55]} Kd5 {[%emt 0:00:42]} 46. Rg6 {[%emt 0:00:44]} Kc5 {[%emt 0:00:15]} 47. Kg3 {[%emt 0:00:24]} Bd2 {[%emt 0:00:55]} 48. Ra6 {[%emt 0:00:43]} Be1+ {[%emt 0:00:20]} 49. Kg4 {[%emt 0:00:14]} Bd2 {[%emt 0:00:14]} 50. Ra4 {[%emt 0:00:57]} Bc3 {[%emt 0:00:26]} 51. Rc4+ {[%emt 0:00:15]} Kb6 {[%emt 0:00:57]} 52. b4 {[%emt 0:03:01]} Rf7 {[%emt 0:00:47]} 53. b5 {[%emt 0:00:42]} Rc7 {[%emt 0:00:31]} 54. Ra4 {[%emt 0:02:35]} Ra7 {[%emt 0:00:19]} 55. Ra6+ {[%emt 0:00:24]} Rxa6 {[%emt 0:00:02]} 56. bxa6 {[%emt 0:00:11]} Kc7 {[%emt 0:00:35]} 57. Kf5 {[%emt 0:00:06]} Kb6 {[%emt 0:00:04]} 58. Ke6 {[%emt 0:00:10]} Bb2 {[%emt 0:00:04]} 59. Kd7 {[%emt 0:00:53]} Ka7 {[%emt 0:00:08]} 1/2-1/2

[Event "Kragero Resort B 2020"]
[Site "Kragero"]
[Date "2020.02.22"]
[Round "8.8"]
[White "Skogli, Paal"]
[Black "Sekkingstad, Thomas"]
[Result "0-1"]
[ECO "D15"]
[WhiteElo "1801"]
[BlackElo "1758"]
[Annotator "NA"]
[PlyCount "54"]
[EventDate "2020.02.19"]
[EventType "swiss"]
[EventCountry "NOR"]
[SourceTitle "playchess.com"]
[Source "ChessBase"]
[SourceQuality "1"]
[TimeControl "5400+30"]

1. d4 {[%emt 0:00:00]} d5 {[%emt 0:00:00]} 2. c4 {[%emt 0:00:00]} c6 {[%emt 0:00:00]} 3. Nc3 {[%emt 0:00:00]} Nf6 {[%emt 0:00:14]} 4. Nf3 {[%emt 0:00:23]} dxc4 {[%emt 0:00:11]} 5. e4 {[%emt 0:00:34]} b5 {[%emt 0:00:54]} 6. e5 {[%emt 0:01:04]} Nd5 {[%emt 0:00:10]} 7. Be2 {[%emt 0:01:16]} e6 {[%emt 0:00:39]} 8. O-O {[%emt 0:00:06]} Be7 {[%emt 0:00:11]} 9. Ne4 {[%emt 0:00:12]} Nd7 {[%emt 0:00:41]} 10. a3 {[%emt 0:01:43]} Bb7 {[%emt 0:01:22]} 11. Qc2 {[%emt 0:00:05]} c5 {[%emt 0:01:41]} 12. Be3 {[%emt 0:00:12]} Qc7 {[%emt 0:00:17]} 13. Bg5 {[%emt 0:07:15]} cxd4 {[%emt 0:13:33]} 14. Bxe7 {[%emt 0:02:47]} Kxe7 {[%emt 0:00:32]} 15. Nxd4 {[%emt 0:00:28]} a6 {[%emt 0:00:20]} 16. f4 {[%emt 0:01:42]} Ne3 {[%emt 0:00:35]} 17. Qb1 {[%emt 0:01:24]} Nxf1 {[%emt 0:00:08]} 18. Kxf1 {[%emt 0:00:21]} Nxe5 {[%emt 0:02:57]} 19. Ng3 {[%emt 0:12:51]} Rad8 {[%emt 0:02:37]} 20. Ndf5+ {[%emt 0:06:48]} exf5 {[%emt 0:00:30]} 21. Qxf5 {[%emt 0:00:11]} g6 {[%emt 0:06:00]} 22. Qg5+ {[%emt 0:03:10]} f6 {[%emt 0:00:11]} 23. Qh4 {[%emt 0:02:07]} Nd3 {[%emt 0:00:28]} 24. Bxd3 {[%emt 0:00:04]} cxd3 {[%emt 0:00:23]} 25. Re1+ {[%emt 0:00:04]} Kf7 {[%emt 0:00:13]} 26. Nf5 {[%emt 0:00:32]} d2 {[%emt 0:03:01]} 27. Nh6+ {[%emt 0:01:07]} Kg7 {[%emt 0:00:07]} 0-1